[Event "Titled Tuesday Blitz November 30 2021"]
[White "Ronka, Erik"]
[Black "Narayanan.S.L"]
[WhiteFideId "505080"]
[BlackFideId "5058422"]
[WhiteElo "2264"]
[BlackElo "2570"]
[Result "0-1"]
[Round "01"]
[TimeControl "180+1"]
[Date "2021.11.30"]
[WhiteClock "0:00:05"]
[BlackClock "0:00:59"]

1. d4 {[%clk 0:03:00]}  Nf6 {[%clk 0:02:59]} 2. Nf3 {[%clk 0:03:00]}  g6 {[%clk 0:02:59]} 3. g3 {[%clk 0:03:01]}  Bg7 {[%clk 0:02:59]} 4. Bg2 {[%clk 0:03:02]}  O-O {[%clk 0:02:59]} 5. O-O {[%clk 0:03:03]}  d6 {[%clk 0:03:00]} 6. b3 {[%clk 0:03:02]}  e5 {[%clk 0:02:58]} 7. dxe5 {[%clk 0:03:03]}  dxe5 {[%clk 0:02:59]} 8. Ba3 {[%clk 0:03:04]}  Qxd1 {[%clk 0:02:58]} 9. Rxd1 {[%clk 0:03:05]}  Re8 {[%clk 0:02:58]} 10. Bb2 {[%clk 0:02:37]}  Nc6 {[%clk 0:02:56]} 11. Nbd2 {[%clk 0:02:34]}  Bf5 {[%clk 0:02:45]} 12. Ne1 {[%clk 0:02:28]}  Rad8 {[%clk 0:02:44]} 13. Bxc6 {[%clk 0:02:23]}  bxc6 {[%clk 0:02:43]} 14. Nc4 {[%clk 0:02:23]}  Nd5 {[%clk 0:02:42]} 15. f3 {[%clk 0:02:12]}  e4 {[%clk 0:02:41]} 16. Bxg7 {[%clk 0:02:13]}  Kxg7 {[%clk 0:02:40]} 17. g4 {[%clk 0:01:47]}  Bc8 {[%clk 0:02:31]} 18. Kf2 {[%clk 0:01:43]}  Ba6 {[%clk 0:02:30]} 19. Rd4 {[%clk 0:01:32]}  exf3 {[%clk 0:02:27]} 20. Nxf3 {[%clk 0:01:27]}  c5 {[%clk 0:02:22]} 21. Rd3 {[%clk 0:00:49]}  Nb6 {[%clk 0:01:58]} 22. Rxd8 {[%clk 0:00:45]}  Rxd8 {[%clk 0:01:59]} 23. Nxb6 {[%clk 0:00:42]}  axb6 {[%clk 0:01:58]} 24. a4 {[%clk 0:00:32]}  Re8 {[%clk 0:01:52]} 25. e3 {[%clk 0:00:32]}  Bc8 {[%clk 0:01:51]} 26. h3 {[%clk 0:00:31]}  f5 {[%clk 0:01:49]} 27. g5 {[%clk 0:00:29]}  Bb7 {[%clk 0:01:49]} 28. Rd1 {[%clk 0:00:20]}  Re7 {[%clk 0:01:49]} 29. Rd8 {[%clk 0:00:18]}  Be4 {[%clk 0:01:48]} 30. c3 {[%clk 0:00:18]}  Bc2 {[%clk 0:01:42]} 31. b4 {[%clk 0:00:18]}  cxb4 {[%clk 0:01:42]} 32. cxb4 {[%clk 0:00:19]}  Bxa4 {[%clk 0:01:42]} 33. Nd4 {[%clk 0:00:18]}  Bd7 {[%clk 0:01:42]} 34. b5 {[%clk 0:00:16]}  Kf7 {[%clk 0:01:39]} 35. h4 {[%clk 0:00:17]}  Be8 {[%clk 0:01:38]} 36. Rc8 {[%clk 0:00:16]}  Kg7 {[%clk 0:01:32]} 37. Rd8 {[%clk 0:00:16]}  h6 {[%clk 0:01:31]} 38. Kf3 {[%clk 0:00:16]}  hxg5 {[%clk 0:01:32]} 39. hxg5 {[%clk 0:00:15]}  Kf7 {[%clk 0:01:29]} 40. Rc8 {[%clk 0:00:15]}  Kg7 {[%clk 0:01:16]} 41. Rd8 {[%clk 0:00:15]}  Bf7 {[%clk 0:01:17]} 42. Kf2 {[%clk 0:00:14]}  Re4 {[%clk 0:01:11]} 43. Rc8 {[%clk 0:00:13]}  f4 {[%clk 0:01:11]} 44. Nc2 {[%clk 0:00:06]}  Rc4 {[%clk 0:01:10]} 45. Nd4 {[%clk 0:00:06]}  Bd5 {[%clk 0:01:09]} 46. Ne2 {[%clk 0:00:02]}  fxe3+ {[%clk 0:01:06]} 47. Kxe3 {[%clk 0:00:03]}  Rc5 {[%clk 0:01:06]} 48. Nd4 {[%clk 0:00:04]}  Kf7 {[%clk 0:01:04]} 49. Rd8 {[%clk 0:00:04]}  Ke7 {[%clk 0:01:02]} 50. Rh8 {[%clk 0:00:04]}  Bf7 {[%clk 0:01:02]} 51. Rh6 {[%clk 0:00:05]}  Rxg5 {[%clk 0:01:02]} 52. Rh7 {[%clk 0:00:05]}  Kf6 {[%clk 0:01:02]} 53. Nc6 {[%clk 0:00:04]}  Rxb5 {[%clk 0:01:02]} 54. Nd8 {[%clk 0:00:04]}  Re5+ {[%clk 0:01:01]} 55. Kd4 {[%clk 0:00:04]}  c5+ {[%clk 0:01:00]} 56. Kc3 {[%clk 0:00:04]}  Re7 {[%clk 0:01:00]} 57. Nc6 {[%clk 0:00:04]}  Rc7 {[%clk 0:00:59]} 58. Nb8 {[%clk 0:00:04]}  b5 {[%clk 0:00:59]} 59. Na6 {[%clk 0:00:04]}  b4+ {[%clk 0:00:59]} 60. Kb2 {[%clk 0:00:05]}  Rc6 {[%clk 0:00:58]} 61. Nb8 {[%clk 0:00:05]}  Rd6 {[%clk 0:00:59]} 62. Rh2 {[%clk 0:00:04]}  c4 {[%clk 0:00:58]} 63. Na6 {[%clk 0:00:04]}  Rxa6 {[%clk 0:00:58]} 64. Rf2+ {[%clk 0:00:04]}  Kg7 {[%clk 0:00:58]} 65. Kb1 {[%clk 0:00:05]}  c3 {[%clk 0:00:58]} 66. Re2 {[%clk 0:00:05]}  b3 {[%clk 0:00:59]} 67. Rf2 {[%clk 0:00:05]}  Rf6 {[%clk 0:00:59]} 68. Rg2 {[%clk 0:00:05]}  Rf1# {[%clk 0:00:59]} 0-1


[Site "https://www.chess.com"]

[Event "Titled Tuesday Blitz November 30 2021"]
[White "Siva Mahadevan"]
[Black "Berezin, Viktor"]
[WhiteFideId "25043153"]
[BlackFideId "14107872"]
[WhiteElo "2203"]
[BlackElo "2310"]
[Result "1-0"]
[Round "01"]
[TimeControl "180+1"]
[Date "2021.11.30"]
[WhiteClock "0:00:28"]
[BlackClock "0:00:18"]

1. e4 {[%clk 0:02:58]}  d5 {[%clk 0:02:59]} 2. exd5 {[%clk 0:02:58]}  Nf6 {[%clk 0:02:57]} 3. Bb5+ {[%clk 0:02:57]}  Nbd7 {[%clk 0:02:56]} 4. Nc3 {[%clk 0:02:57]}  g6 {[%clk 0:02:53]} 5. Nge2 {[%clk 0:02:56]}  Bg7 {[%clk 0:02:52]} 6. O-O {[%clk 0:02:56]}  O-O {[%clk 0:02:53]} 7. d4 {[%clk 0:02:55]}  a6 {[%clk 0:02:53]} 8. Ba4 {[%clk 0:02:55]}  b5 {[%clk 0:02:53]} 9. Bb3 {[%clk 0:02:55]}  Bb7 {[%clk 0:02:54]} 10. Nf4 {[%clk 0:02:55]}  Nb6 {[%clk 0:02:52]} 11. Qf3 {[%clk 0:02:55]}  b4 {[%clk 0:02:46]} 12. Na4 {[%clk 0:02:49]}  Nxa4 {[%clk 0:02:32]} 13. Bxa4 {[%clk 0:02:50]}  Nxd5 {[%clk 0:02:32]} 14. Bb3 {[%clk 0:02:48]}  e6 {[%clk 0:02:19]} 15. Nd3 {[%clk 0:02:38]}  Bxd4 {[%clk 0:02:00]} 16. Bh6 {[%clk 0:02:36]}  Bg7 {[%clk 0:01:59]} 17. Bxg7 {[%clk 0:02:35]}  Kxg7 {[%clk 0:01:59]} 18. Nxb4 {[%clk 0:02:34]}  c5 {[%clk 0:01:43]} 19. Nxd5 {[%clk 0:02:18]}  Bxd5 {[%clk 0:01:35]} 20. Qc3+ {[%clk 0:02:17]}  Qf6 {[%clk 0:01:34]} 21. Qxc5 {[%clk 0:02:03]}  Bxb3 {[%clk 0:01:31]} 22. axb3 {[%clk 0:02:01]}  Qxb2 {[%clk 0:01:30]} 23. Rfb1 {[%clk 0:02:00]}  Qf6 {[%clk 0:01:30]} 24. Ra2 {[%clk 0:02:00]}  Rfc8 {[%clk 0:01:29]} 25. Qe3 {[%clk 0:02:00]}  Rc3 {[%clk 0:01:29]} 26. Qe4 {[%clk 0:02:00]}  Rac8 {[%clk 0:01:28]} 27. g3 {[%clk 0:01:51]}  a5 {[%clk 0:01:19]} 28. Rd1 {[%clk 0:01:45]}  Rf3 {[%clk 0:01:12]} 29. Rd2 {[%clk 0:01:43]}  Rc5 {[%clk 0:01:02]} 30. Kg2 {[%clk 0:01:34]}  Rcf5 {[%clk 0:00:57]} 31. Qe1 {[%clk 0:01:30]}  h5 {[%clk 0:00:56]} 32. Re2 {[%clk 0:01:24]}  h4 {[%clk 0:00:54]} 33. Rxa5 {[%clk 0:01:24]}  h3+ {[%clk 0:00:49]} 34. Kxh3 {[%clk 0:01:20]}  Rxa5 {[%clk 0:00:43]} 35. Qxa5 {[%clk 0:01:21]}  Rxf2 {[%clk 0:00:43]} 36. Rxf2 {[%clk 0:01:19]}  Qxf2 {[%clk 0:00:44]} 37. Qc3+ {[%clk 0:01:19]}  Kh7 {[%clk 0:00:37]} 38. Qd3 {[%clk 0:01:16]}  f5 {[%clk 0:00:32]} 39. b4 {[%clk 0:01:07]}  Kh6 {[%clk 0:00:30]} 40. b5 {[%clk 0:01:04]}  g5 {[%clk 0:00:28]} 41. g4 {[%clk 0:00:44]}  f4 {[%clk 0:00:19]} 42. Qe4 {[%clk 0:00:25]}  Qh4+ {[%clk 0:00:18]} 43. Kg2 {[%clk 0:00:26]}  Qxg4+ {[%clk 0:00:19]} 44. Kf2 {[%clk 0:00:26]}  Qh4+ {[%clk 0:00:18]} 45. Kf1 {[%clk 0:00:27]}  Qh3+ {[%clk 0:00:18]} 46. Ke1 {[%clk 0:00:27]}  Kh5 {[%clk 0:00:17]} 47. Qh7+ {[%clk 0:00:26]}  Kg4 {[%clk 0:00:18]} 48. Qxh3+ {[%clk 0:00:25]}  Kxh3 {[%clk 0:00:18]} 49. Kf2 {[%clk 0:00:25]}  Kxh2 {[%clk 0:00:18]} 50. b6 {[%clk 0:00:26]}  g4 {[%clk 0:00:19]} 51. b7 {[%clk 0:00:27]}  g3+ {[%clk 0:00:20]} 52. Kf3 {[%clk 0:00:27]}  g2 {[%clk 0:00:18]} 53. b8=Q {[%clk 0:00:27]}  g1=Q {[%clk 0:00:18]} 54. Qh8# {[%clk 0:00:28]} 1-0


[Site "https://www.chess.com"]

[Event "Titled Tuesday Blitz November 30 2021"]
[White "So, Wesley"]
[Black "Bilan, Danila"]
[WhiteFideId "5202213"]
[BlackFideId "24161918"]
[WhiteElo "2814"]
[BlackElo "2164"]
[Result "1-0"]
[Round "01"]
[TimeControl "180+1"]
[Date "2021.11.30"]
[WhiteClock "0:01:06"]
[BlackClock "0:00:05"]

1. Nf3 {[%clk 0:03:00]}  d5 {[%clk 0:02:59]} 2. e3 {[%clk 0:02:59]}  Nf6 {[%clk 0:02:59]} 3. c4 {[%clk 0:03:00]}  c6 {[%clk 0:03:00]} 4. Nc3 {[%clk 0:03:00]}  e6 {[%clk 0:02:56]} 5. d4 {[%clk 0:02:58]}  Nbd7 {[%clk 0:02:56]} 6. Be2 {[%clk 0:02:56]}  Bd6 {[%clk 0:02:56]} 7. O-O {[%clk 0:02:56]}  O-O {[%clk 0:02:52]} 8. b3 {[%clk 0:02:56]}  dxc4 {[%clk 0:02:48]} 9. bxc4 {[%clk 0:02:55]}  e5 {[%clk 0:02:48]} 10. Qc2 {[%clk 0:02:52]}  Qe7 {[%clk 0:02:33]} 11. Rd1 {[%clk 0:02:50]}  Re8 {[%clk 0:02:28]} 12. h3 {[%clk 0:02:48]}  e4 {[%clk 0:02:09]} 13. Nd2 {[%clk 0:02:46]}  Nf8 {[%clk 0:02:07]} 14. c5 {[%clk 0:02:44]}  Bc7 {[%clk 0:02:01]} 15. Ba3 {[%clk 0:02:43]}  Ng6 {[%clk 0:01:35]} 16. Nc4 {[%clk 0:02:41]}  Nh4 {[%clk 0:01:00]} 17. Nd6 {[%clk 0:02:41]}  Bxd6 {[%clk 0:01:00]} 18. cxd6 {[%clk 0:02:42]}  Qe6 {[%clk 0:01:00]} 19. Bf1 {[%clk 0:02:40]}  Nd5 {[%clk 0:00:47]} 20. Nxd5 {[%clk 0:02:30]}  cxd5 {[%clk 0:00:48]} 21. Qc7 {[%clk 0:02:15]}  Bd7 {[%clk 0:00:27]} 22. Rab1 {[%clk 0:02:03]}  Bc6 {[%clk 0:00:24]} 23. d7 {[%clk 0:01:57]}  Qxd7 {[%clk 0:00:23]} 24. Qxd7 {[%clk 0:01:57]}  Bxd7 {[%clk 0:00:24]} 25. Rxb7 {[%clk 0:01:56]}  Be6 {[%clk 0:00:25]} 26. Bc5 {[%clk 0:01:54]}  a5 {[%clk 0:00:22]} 27. a4 {[%clk 0:01:52]}  Ng6 {[%clk 0:00:21]} 28. Rdb1 {[%clk 0:01:50]}  Nf8 {[%clk 0:00:20]} 29. Kh2 {[%clk 0:01:40]}  Rec8 {[%clk 0:00:19]} 30. Bb5 {[%clk 0:01:36]}  h6 {[%clk 0:00:18]} 31. g4 {[%clk 0:01:32]}  Rab8 {[%clk 0:00:17]} 32. Ba6 {[%clk 0:01:30]}  Rxb7 {[%clk 0:00:14]} 33. Rxb7 {[%clk 0:01:29]}  Ra8 {[%clk 0:00:12]} 34. Bb5 {[%clk 0:01:26]}  g6 {[%clk 0:00:08]} 35. Kg3 {[%clk 0:01:25]}  g5 {[%clk 0:00:08]} 36. Ra7 {[%clk 0:01:17]}  Rxa7 {[%clk 0:00:06]} 37. Bxa7 {[%clk 0:01:18]}  Nd7 {[%clk 0:00:06]} 38. f4 {[%clk 0:01:06]}  f6 {[%clk 0:00:05]} 39. f5 {[%clk 0:01:06]} 1-0


[Site "https://www.chess.com"]

[Event "Titled Tuesday Blitz November 30 2021"]
[White "Sviridov, Valery"]
[Black "Odegov, Artem"]
[WhiteFideId "4120680"]
[BlackFideId "34183644"]
[WhiteElo "2454"]
[BlackElo "2287"]
[Result "1-0"]
[Round "01"]
[TimeControl "180+1"]
[Date "2021.11.30"]
[WhiteClock "0:01:29"]
[BlackClock "0:00:30"]

1. Nf3 {[%clk 0:02:59]}  d5 {[%clk 0:02:59]} 2. g3 {[%clk 0:02:59]}  c6 {[%clk 0:02:58]} 3. Bg2 {[%clk 0:02:59]}  Bg4 {[%clk 0:02:59]} 4. O-O {[%clk 0:03:00]}  Nd7 {[%clk 0:02:59]} 5. d4 {[%clk 0:03:00]}  Ngf6 {[%clk 0:02:59]} 6. Nbd2 {[%clk 0:03:01]}  e6 {[%clk 0:03:00]} 7. Re1 {[%clk 0:03:01]}  Be7 {[%clk 0:03:00]} 8. e4 {[%clk 0:03:02]}  dxe4 {[%clk 0:03:01]} 9. Nxe4 {[%clk 0:03:02]}  O-O {[%clk 0:03:00]} 10. c3 {[%clk 0:03:02]}  Nxe4 {[%clk 0:03:00]} 11. Rxe4 {[%clk 0:03:03]}  Nf6 {[%clk 0:03:00]} 12. Re1 {[%clk 0:03:02]}  Qb6 {[%clk 0:02:59]} 13. Qb3 {[%clk 0:03:02]}  Rad8 {[%clk 0:02:59]} 14. Ne5 {[%clk 0:03:02]}  Bf5 {[%clk 0:02:58]} 15. Nc4 {[%clk 0:03:02]}  Qb5 {[%clk 0:02:39]} 16. Qxb5 {[%clk 0:03:01]}  cxb5 {[%clk 0:02:40]} 17. Ne3 {[%clk 0:03:02]}  Be4 {[%clk 0:02:36]} 18. f3 {[%clk 0:02:38]}  Bc6 {[%clk 0:02:33]} 19. a3 {[%clk 0:02:36]}  Rd7 {[%clk 0:02:26]} 20. Kf2 {[%clk 0:02:36]}  Rfd8 {[%clk 0:02:22]} 21. Bf1 {[%clk 0:02:36]}  a6 {[%clk 0:02:13]} 22. Be2 {[%clk 0:02:29]}  Bd6 {[%clk 0:02:11]} 23. Nc2 {[%clk 0:01:49]}  h6 {[%clk 0:02:03]} 24. Nb4 {[%clk 0:01:45]}  Bd5 {[%clk 0:02:04]} 25. Nxd5 {[%clk 0:01:44]}  Nxd5 {[%clk 0:02:04]} 26. f4 {[%clk 0:01:41]}  Bc7 {[%clk 0:02:03]} 27. Bf3 {[%clk 0:01:42]}  Bb6 {[%clk 0:02:03]} 28. h4 {[%clk 0:01:38]}  a5 {[%clk 0:02:02]} 29. Kg2 {[%clk 0:01:35]}  b4 {[%clk 0:01:58]} 30. axb4 {[%clk 0:01:36]}  axb4 {[%clk 0:01:58]} 31. c4 {[%clk 0:01:37]}  Nf6 {[%clk 0:01:52]} 32. c5 {[%clk 0:01:37]}  Bc7 {[%clk 0:01:51]} 33. Be3 {[%clk 0:01:33]}  Nd5 {[%clk 0:01:48]} 34. Bxd5 {[%clk 0:01:34]}  Rxd5 {[%clk 0:01:49]} 35. Ra7 {[%clk 0:01:34]}  Rb8 {[%clk 0:01:38]} 36. Rc1 {[%clk 0:01:34]}  Bd8 {[%clk 0:01:31]} 37. Rc4 {[%clk 0:01:34]}  Bf6 {[%clk 0:00:38]} 38. Rxb4 {[%clk 0:01:33]}  Rbd8 {[%clk 0:00:36]} 39. Raxb7 {[%clk 0:01:28]}  Bxd4 {[%clk 0:00:27]} 40. Bxd4 {[%clk 0:01:29]}  Rxd4 {[%clk 0:00:28]} 41. Rxd4 {[%clk 0:01:28]}  Rxd4 {[%clk 0:00:29]} 42. c6 {[%clk 0:01:26]}  Rc4 {[%clk 0:00:29]} 43. c7 {[%clk 0:01:26]}  Kh7 {[%clk 0:00:29]} 44. b4 {[%clk 0:01:26]}  Kg6 {[%clk 0:00:27]} 45. b5 {[%clk 0:01:27]}  Kf5 {[%clk 0:00:28]} 46. b6 {[%clk 0:01:27]}  Kg4 {[%clk 0:00:28]} 47. Kf2 {[%clk 0:01:26]}  Rc2+ {[%clk 0:00:28]} 48. Ke3 {[%clk 0:01:27]}  Kxg3 {[%clk 0:00:28]} 49. Rb8 {[%clk 0:01:28]}  Kxh4 {[%clk 0:00:28]} 50. c8=Q {[%clk 0:01:28]}  Rxc8 {[%clk 0:00:29]} 51. Rxc8 {[%clk 0:01:29]}  g5 {[%clk 0:00:29]} 52. fxg5 {[%clk 0:01:28]}  hxg5 {[%clk 0:00:30]} 53. b7 {[%clk 0:01:29]} 1-0


[Site "https://www.chess.com"]

[Event "Titled Tuesday Blitz November 30 2021"]
[White "Taboas Rodriguez, Daniel"]
[Black "Sadhwani, Raunak"]
[WhiteFideId "2208466"]
[BlackFideId "35093487"]
[WhiteElo "2429"]
[BlackElo "2517"]
[Result "0-1"]
[Round "01"]
[TimeControl "180+1"]
[Date "2021.11.30"]
[WhiteClock "0:00:05"]
[BlackClock "0:00:03"]

1. d4 {[%clk 0:02:57]}  Nf6 {[%clk 0:02:59]} 2. Nf3 {[%clk 0:02:58]}  g6 {[%clk 0:02:59]} 3. c4 {[%clk 0:02:58]}  Bg7 {[%clk 0:02:59]} 4. Nc3 {[%clk 0:02:59]}  O-O {[%clk 0:03:00]} 5. e4 {[%clk 0:02:59]}  d6 {[%clk 0:03:00]} 6. Be2 {[%clk 0:03:00]}  Nbd7 {[%clk 0:03:01]} 7. O-O {[%clk 0:03:00]}  e5 {[%clk 0:03:01]} 8. Be3 {[%clk 0:03:00]}  Ng4 {[%clk 0:02:58]} 9. Bg5 {[%clk 0:02:59]}  f6 {[%clk 0:02:59]} 10. Bd2 {[%clk 0:02:59]}  Nh6 {[%clk 0:02:57]} 11. d5 {[%clk 0:02:55]}  Nf7 {[%clk 0:02:56]} 12. b4 {[%clk 0:02:53]}  f5 {[%clk 0:02:56]} 13. Qc2 {[%clk 0:02:49]}  Nf6 {[%clk 0:02:55]} 14. Ng5 {[%clk 0:02:49]}  Nxg5 {[%clk 0:02:52]} 15. Bxg5 {[%clk 0:02:50]}  h6 {[%clk 0:02:53]} 16. Bxf6 {[%clk 0:02:49]}  Qxf6 {[%clk 0:02:53]} 17. c5 {[%clk 0:02:47]}  Qe7 {[%clk 0:02:31]} 18. Rac1 {[%clk 0:02:45]}  f4 {[%clk 0:01:51]} 19. f3 {[%clk 0:02:45]}  a6 {[%clk 0:01:41]} 20. cxd6 {[%clk 0:02:39]}  cxd6 {[%clk 0:01:42]} 21. Na4 {[%clk 0:02:39]}  Bd7 {[%clk 0:01:18]} 22. Nb6 {[%clk 0:02:39]}  Rab8 {[%clk 0:01:17]} 23. Qc7 {[%clk 0:02:39]}  Rfd8 {[%clk 0:01:17]} 24. Rc3 {[%clk 0:02:20]}  Bf8 {[%clk 0:01:12]} 25. Rfc1 {[%clk 0:02:20]}  h5 {[%clk 0:00:55]} 26. a4 {[%clk 0:02:16]}  g5 {[%clk 0:00:50]} 27. Nxd7 {[%clk 0:02:15]}  Qxd7 {[%clk 0:00:51]} 28. Qxd7 {[%clk 0:02:15]}  Rxd7 {[%clk 0:00:52]} 29. Rc8 {[%clk 0:02:15]}  Rxc8 {[%clk 0:00:49]} 30. Rxc8 {[%clk 0:02:16]}  Kf7 {[%clk 0:00:43]} 31. Kf2 {[%clk 0:01:21]}  Be7 {[%clk 0:00:43]} 32. g3 {[%clk 0:01:21]}  Bd8 {[%clk 0:00:40]} 33. a5 {[%clk 0:01:18]}  Ke7 {[%clk 0:00:29]} 34. gxf4 {[%clk 0:01:09]}  exf4 {[%clk 0:00:29]} 35. h4 {[%clk 0:00:41]}  gxh4 {[%clk 0:00:27]} 36. Kg2 {[%clk 0:00:42]}  b6 {[%clk 0:00:17]} 37. axb6 {[%clk 0:00:38]}  Bxb6 {[%clk 0:00:18]} 38. Bxa6 {[%clk 0:00:38]}  Ra7 {[%clk 0:00:19]} 39. b5 {[%clk 0:00:38]}  Kf6 {[%clk 0:00:18]} 40. Kh3 {[%clk 0:00:38]}  Bf2 {[%clk 0:00:18]} 41. Rf8+ {[%clk 0:00:33]}  Ke5 {[%clk 0:00:18]} 42. Rf5+ {[%clk 0:00:31]}  Kd4 {[%clk 0:00:18]} 43. Rxh5 {[%clk 0:00:31]}  Rg7 {[%clk 0:00:18]} 44. e5 {[%clk 0:00:26]}  Rg3+ {[%clk 0:00:14]} 45. Kh2 {[%clk 0:00:26]}  dxe5 {[%clk 0:00:14]} 46. d6 {[%clk 0:00:24]}  h3 {[%clk 0:00:07]} 47. d7 {[%clk 0:00:22]}  Rg2+ {[%clk 0:00:06]} 48. Kxh3 {[%clk 0:00:21]}  Rg3+ {[%clk 0:00:06]} 49. Kh2 {[%clk 0:00:21]}  Rg8 {[%clk 0:00:07]} 50. b6 {[%clk 0:00:19]}  Ke3 {[%clk 0:00:07]} 51. b7 {[%clk 0:00:19]}  Kxf3 {[%clk 0:00:07]} 52. Rh3+ {[%clk 0:00:17]}  Bg3+ {[%clk 0:00:07]} 53. Kh1 {[%clk 0:00:17]}  e4 {[%clk 0:00:07]} 54. Rh7 {[%clk 0:00:12]}  e3 {[%clk 0:00:05]} 55. Re7 {[%clk 0:00:07]}  Kf2 {[%clk 0:00:04]} 56. Rh7 {[%clk 0:00:05]}  f3 {[%clk 0:00:03]} 0-1


[Site "https://www.chess.com"]

[Event "Titled Tuesday Blitz November 30 2021"]
[White "Van der Werf, Mark"]
[Black "Xiong, Jeffery"]
[WhiteFideId "1000470"]
[BlackFideId "2047640"]
[WhiteElo "2398"]
[BlackElo "2699"]
[Result "0-1"]
[Round "01"]
[TimeControl "180+1"]
[Date "2021.11.30"]
[WhiteClock "0:00:04"]
[BlackClock "0:00:32"]

1. d4 {[%clk 0:03:00]}  Nf6 {[%clk 0:02:59]} 2. c4 {[%clk 0:03:00]}  e6 {[%clk 0:02:59]} 3. Nc3 {[%clk 0:03:00]}  Bb4 {[%clk 0:02:59]} 4. e3 {[%clk 0:03:00]}  O-O {[%clk 0:02:58]} 5. Bd3 {[%clk 0:03:00]}  d5 {[%clk 0:02:57]} 6. a3 {[%clk 0:02:59]}  Bxc3+ {[%clk 0:02:55]} 7. bxc3 {[%clk 0:02:59]}  dxc4 {[%clk 0:02:56]} 8. Bxc4 {[%clk 0:02:59]}  c5 {[%clk 0:02:57]} 9. Nf3 {[%clk 0:02:56]}  Nc6 {[%clk 0:02:56]} 10. O-O {[%clk 0:02:50]}  Qc7 {[%clk 0:02:56]} 11. Qc2 {[%clk 0:02:44]}  e5 {[%clk 0:02:53]} 12. h3 {[%clk 0:02:41]}  h6 {[%clk 0:02:40]} 13. Bb5 {[%clk 0:02:36]}  e4 {[%clk 0:02:34]} 14. Nd2 {[%clk 0:02:35]}  Bf5 {[%clk 0:02:29]} 15. f3 {[%clk 0:02:19]}  Rfe8 {[%clk 0:01:44]} 16. fxe4 {[%clk 0:02:14]}  Bxe4 {[%clk 0:01:45]} 17. Nxe4 {[%clk 0:02:12]}  Nxe4 {[%clk 0:01:45]} 18. Bd3 {[%clk 0:02:07]}  Nd6 {[%clk 0:01:40]} 19. Qf2 {[%clk 0:01:32]}  Na5 {[%clk 0:01:34]} 20. Rb1 {[%clk 0:01:26]}  Re6 {[%clk 0:01:31]} 21. e4 {[%clk 0:01:13]}  Nxe4 {[%clk 0:01:26]} 22. Bxe4 {[%clk 0:00:59]}  Rxe4 {[%clk 0:01:27]} 23. dxc5 {[%clk 0:00:59]}  Rae8 {[%clk 0:01:25]} 24. Bf4 {[%clk 0:00:51]}  Qd7 {[%clk 0:01:17]} 25. Bd6 {[%clk 0:00:51]}  Re2 {[%clk 0:01:14]} 26. Qg3 {[%clk 0:00:46]}  R8e3 {[%clk 0:01:13]} 27. Rf3 {[%clk 0:00:42]}  Qe6 {[%clk 0:01:11]} 28. Rbf1 {[%clk 0:00:38]}  Nc4 {[%clk 0:01:10]} 29. Qf4 {[%clk 0:00:28]}  Rxf3 {[%clk 0:00:56]} 30. Rxf3 {[%clk 0:00:20]}  Nd2 {[%clk 0:00:57]} 31. Rf2 {[%clk 0:00:12]}  g5 {[%clk 0:00:31]} 32. Rxe2 {[%clk 0:00:08]}  Qxe2 {[%clk 0:00:31]} 33. Qf5 {[%clk 0:00:06]}  Qe1+ {[%clk 0:00:30]} 34. Kh2 {[%clk 0:00:05]}  Nf1+ {[%clk 0:00:31]} 35. Kg1 {[%clk 0:00:04]}  Ne3+ {[%clk 0:00:32]} 0-1


[Site "https://www.chess.com"]